Cogmind - Beta 16 @@@ ROGUE MODE // 2025.11.09 @ 02:54:47 Player: Demo Result: Destroyed by G-47 Trooper with Particle Gun Performance ------------- Evolutions (0) 0 Regions Visited (1) 200 Robots Destroyed (0) 0 Value Destroyed (0) 0 Prototype IDs (0) 0 Alien Tech Used (0) 0 Bonus (0) 0 TOTAL SCORE: 200 Bonus ------- None Cogmind --------- Core Integrity 0/250 Matter 216/300 Energy 100/100 System Corruption 0% Temperature Cool (9) Movement Core (50) Location -10/Materials Parts ------- > --- POWER (1) -------- (None) > --- PROPULSION (2) --- (None) > --- UTILITY (2) ------ (None) > --- WEAPON (2) ------- (None) > --- INVENTORY (5) ---- Huge Storage Unit Peak State ------------ > --- POWER ------------ (None) > --- PROPULSION ------- Light Treads Light Treads > --- UTILITY ---------- (None) > --- WEAPON ----------- (None) > --- INVENTORY -------- (None) [Rating: 2] Favorites ----------- Power None Propulsion Light Treads Treads Light Treads Utility None Weapon None Build | -11 -10 ------- Run | Yrd Mat Slots Evolved . | . . Power . | . . Propulsion . | . . Utility . | . . Weapon . | . . Parts Attached 2 | 2 . Power . | . . Engine . | . . Core . | . . Reactor . | . . Propulsion 2 | 2 . Treads 2 | 2 . Leg . | . . Wheel . | . . Hover . | . . Flight . | . . Utility . | . . Device . | . . Storage . | . . Processor . | . . Hackware . | . . Protection . | . . Artifact . | . . Weapon . | . . Energy Gun . | . . Energy Cannon . | . . Ballistic Gun . | . . Ballistic Cannon . | . . Launcher . | . . Special Weapon . | . . Impact Weapon . | . . Slashing Weapon . | . . Piercing Weapon . | . . Special Melee Weapon . | . . Unidentified Prototypes . | . . Parts Lost 2 | . 2 Power . | . . Propulsion 2 | . 2 Utility . | . . Weapon . | . . Highest Loss Streak 2 | . 2 To Critical Strikes . | . . Average Backups . | . . Power . | . . Propulsion . | . . Utility . | . . Weapon . | . . Tool/Special . | . . Unused Backups 1 | . 1 Power . | . . Propulsion . | . . Utility 1 | . 1 Weapon . | . . Tool/Special . | . . Average Slot Usage (%) 19 | . 19 Treads 19 | . 19 Peak Build Rating 2 | 2 2 Average Rating 1 | 1 1 On Entrance 1 | . 2 Avg Prop Armor Cover (%) 39 | 39 39 Naked Turns 15 | . 15 Heaviest Build . | . . Greatest Support 3 | 3 3 Greatest Overweight (x) . | . . Average Overweight (x) . | . . Largest Inventory Capacity 5 | 5 5 Average Capacity 5 | 5 5 Most Carried 1 | . 1 Average Carried . | . . Final Capacity 5 | 5 5 Final Carried 1 | . 1 Class Distribution -------------------- 100% | Mutant Dominant Class ---------------- Mutant | -10/Materials Resources | -11 -10 ----------- Run | Yrd Mat Matter Collected 126 | 126 . Remotely . | . . Salvage Created . | . . Parts . | . . Haulers Intercepted . | . . Recyclers Shooed . | . . Parts Field Recycled . | . . Retrieved Matter . | . . Parts Self-Destructed . | . . Prevented . | . . Parts Restored . | . . Kills | -11 -10 ------- Run | Yrd Mat Combat Hostiles Destroyed . | . . Classes Destroyed . | . . Best Kill Streak . | . . Combat Bots Only . | . . Max Kills in Single Turn . | . . Gunslinging . | . . Exploded . | . . Melee . | . . Uniques/NPCs Destroyed . | . . Combat | -11 -10 -------- Run | Yrd Mat Hostile Shots Fired 58 | . 58 Missed 13 | . 13 Hits 45 | . 45 Projectile 45 | . 45 Critical Strikes 1 | . 1 Damage Taken 547 | . 547 Core 258 | . 258 Absorbed by Shields . | . . Core Remaining (%) 100 | 100 . Volleys Fired . | . . Largest . | . . Hottest . | . . Shots Fired . | . . Gun . | . . Cannon . | . . Launcher . | . . Special . | . . Kinetic . | . . Thermal . | . . Explosive . | . . Electromagnetic . | . . Robot Hit Streak . | . . Robot Miss Streak . | . . Penetration Max . | . . Secondary Targets . | . . Shots Hit Robots . | . . Core Hits . | . . Critical Kills . | . . Critical Parts Destroyed . | . . Critical Strikes . | . . Melee Attacks . | . . Impact . | . . Slashing . | . . Piercing . | . . Sneak Attacks . | . . Combat Hostiles . | . . Follow-up Attacks . | . . Damage Inflicted . | . . Guns . | . . Cannons . | . . Explosions . | . . Melee . | . . Ramming . | . . Kinetic . | . . Thermal . | . . Explosive . | . . Electromagnetic . | . . Impact . | . . Slashing . | . . Piercing . | . . Highest Corruption . | . . Average Corruption . | . . Corruption Purged . | . . Corruption Blocked . | . . Overload Shots . | . . Overflow Damage . | . . Projectiles . | . . Explosions . | . . Melee . | . . Knockbacks . | . . Impact . | . . Kinetic . | . . Secondary . | . . Self-Inflicted Damage . | . . Shots . | . . Rammed . | . . Targets Rammed . | . . Kicked . | . . Crushed . | . . Highest Temperature 8 | . 8 Average Temperature 8 | . 8 Received Heat Transfer 324 | . 324 Siege Activations . | . . Martial Activations . | . . Shielding Activations . | . . Robots Disrupted . | . . Combat Hostiles . | . . Robots Corrupted . | . . Combat Hostiles . | . . Parts Fried . | . . Impact Corruptions . | . . Robots Melted . | . . Combat Hostiles . | . . Parts Melted . | . . Heat Transferred . | . . Parts Sabotaged . | . . Parts Stolen . | . . Parts Stripped . | . . Power Chain Reactions . | . . Alert | -11 -10 ------- Run | Yrd Mat Maximum Alert Level . | . . Low Security (%) 100 | 100 100 Level 1 . | . . Level 2 . | . . Level 3 . | . . Level 4 . | . . Level 5 . | . . High Security . | . . Max Security . | . . Peak Influence . | . . Initial . | . . Average . | . . Influence Increases . | . . Influence Decreases . | . . Squads Dispatched 1 | . 1 Investigation . | . . Extermination . | . . Reinforcement 1 | . 1 Assault . | . . Garrison . | . . Intercept . | . . Searches Triggered . | . . Construction Impeded . | . . Haulers Reinforced . | . . Active Scanning Responses . | . . Cargo Convoy Interrupts . | . . Stealth | -11 -10 --------- Run | Yrd Mat Distress Signals . | . . Communications Jammed . | . . Distress Signals . | . . Times Spotted 4 | . 4 Peak Tracking Total 3 | . 3 Tactical Retreats . | . . Traps | -11 -10 ------- Run | Yrd Mat Traps Triggered . | . . Indirectly . | . . Trap Hack Attempts . | . . Triggered . | . . Disarmed . | . . Reprogrammed . | . . Reused . | . . Traps Extracted . | . . Installed . | . . Triggered . | . . Machines | -11 -10 ---------- Run | Yrd Mat Machines Disabled . | . . Max in Single Turn . | . . Machines Repaired . | . . Machines Dismantled . | . . Machines Sabotaged . | . . Overloaded Fab Kills . | . . Hacking | -11 -10 --------- Run | Yrd Mat Machines Accessed . | . . Terminals . | . . Fabricators . | . . Repair Stations . | . . Recycling Units . | . . Scanalyzers . | . . Garrison Access . | . . Total Hacks . | . . Successful . | . . Failed . | . . Catastrophic . | . . Database Lockouts . | . . Manual . | . . Terminals . | . . Fabricators . | . . Repair Stations . | . . Recycling Units . | . . Scanalyzers . | . . Garrison Access . | . . Terminal Hacks . | . . Fabricator Hacks . | . . Repair Station Hacks . | . . Recycling Unit Hacks . | . . Scanalyzer . | . . Garrison Access Hacks . | . . Unauthorized Hacks . | . . Terminals . | . . Fabricators . | . . Repair Stations . | . . Recycling Units . | . . Scanalyzers . | . . Garrison Access . | . . Data Cores Recovered . | . . Used . | . . Hacking Detections . | . . Full Trace Events . | . . Feedback Events . | . . Feedback Blocked . | . . Robot Schematics Acquired . | . . Robots Built . | . . Authchips . | . . Time . | . . Total Robot Build Rating . | . . Part Schematics Acquired . | . . Parts Built . | . . Authchips . | . . Time . | . . Total Part Build Rating . | . . Part Studies Acquired . | . . Parts Repaired . | . . Time . | . . Parts Recycled . | . . Recycled Matter . | . . Retrieved Matter . | . . Retrieved Components . | . . Parts Scanalyzed . | . . Part Schematics Acquired . | . . Parts Damaged . | . . Bothacking | -11 -10 ------------ Run | Yrd Mat Used RIF Installer . | . . Robots Hacked . | . . Non-combat . | . . Combat . | . . Robot Hacks Applied . | . . Relay Couplers Released . | . . Fabnet Peak Effective % . | . . Robots Rewired . | . . Allies Hacked . | . . Hacks Repelled . | . . Allies | -11 -10 -------- Run | Yrd Mat Total Allies . | . . Largest Group . | . . Highest-Rated Group . | . . Highest-Rated Ally . | . . Total Orders . | . . Ally Attacks . | . . Total Damage . | . . Kills . | . . Allies Corrupted . | . . Allies Melted . | . . Intel | -11 -10 ------- Run | Yrd Mat Active Infowar (turns) . | . . Robot Analysis Total . | . . Derelict Logs Recovered . | . . Drone Launches . | . . Drone Recoveries . | . . Exploration | -11 -10 ------------- Run | Yrd Mat Turns Passed 113 | 19 94 Spaces Moved 76 | 32 44 Core 76 | 32 44 Treads . | . . Legs . | . . Wheels . | . . Hover . | . . Flight . | . . Fastest Speed 50 | 50 50 Average Speed 50 | 50 50 Slowest Speed 50 | 50 50 Overloaded Moves . | . . Propulsion Burnouts . | . . Robots Hopped . | . . Potential Cave-ins . | . . Cave-ins Triggered . | . . Exploration Rate (%) 8 | 3 13 Regions Visited 1 Branch Regions . Pre-discovered Areas . | . . Known Exits Taken . | . . Unknown Exits Taken 1 | 1 . Scrap Searched . | . . Spaces Dug . | . . Terrain Destroyed . | . . Melee . | . . Projectile . | . . AOE . | . . Terrain Rammed . | . . Walls Destroyed . | . . Machines Disabled . | . . Actions | -11 -10 --------- Run | Yrd Mat Total 149 | 33 116 Wait 71 | . 71 Move 75 | 31 44 Hop . | . . Pick Up 1 | . 1 Fast Attach 2 | 2 . Attach . | . . Detach . | . . Swap . | . . Drop . | . . Fire . | . . Melee . | . . Ram . | . . Kick . | . . Crush . | . . Escape Stasis . | . . Rewire . | . . Trap . | . . Miscellaneous . | . . Route ------- -11/Scrapyard -10/Materials (discovered 1 exit: [*Mat]) History --------- Turn | Location | Event 3 | -11/Scrapyard | Discovered new exit (range 15) 20 | -11/Scrapyard | Entered Materials 28 | -10/Materials | Discovered new exit (range 14) 101 | -10/Materials | Core integrity fell below 50% 108 | -10/Materials | Core integrity fell below 20% 114 | -10/Materials | Destroyed by G-47 Trooper with Particle Gun Last Messages --------------- 00073_ T-07 Excavator is excavating. 00073_ U-05 Engineer lays Concrete. 00078_ T-07 Excavator is excavating. 00079_ U-05 Engineer lays Concrete. 00081_ U-05 Engineer builds a Wall. 00082_ T-07 Excavator is excavating. 00085_ U-05 Engineer lays Concrete. 00086_ T-07 Excavator is excavating. 00086_ U-05 Engineer lays Concrete. 00091_ T-07 Excavator is excavating. 00097_ U-05 Engineer lays Concrete. 00099_ T-07 Excavator is excavating. 00099_ Lgt. Treads destroyed. 00099_ U-05 Engineer builds a Wall. 00100_ U-05 Engineer lays Concrete. 00103_ T-07 Excavator is excavating. 00105_ U-05 Engineer lays Concrete. 00105_ U-05 Engineer builds a Wall. 00106_ T-07 Excavator destroyed. 00108_ U-05 Engineer destroyed. Map ----- +----------------------------------------------------+ | ??????????????????????????????????????? | | ???#####??????????????????????????????? | | ???# #??????????????????????????????? | | ??# #??????????????????????????????? | | # #??????????????????????????????? | | + ##?????????????????????????????? | | # T#?????????????????????????????? | | ??# ##?????????????????????????????? | | ???# #??????????????????????????????? | | ???# #??????????????????????????????? | | ???# #??????????????????????????????? | | ???# ##############?????????????????? | | ???+ [[! # ?????????????????? | | ???# [[ # ?????????????????? | | ???# [ # ?????"???????????? | | ???# # """ ""???????????? | | ???# # """ "????????????? | | ???# !== # """ ?????????????? | | ?# !== # """??????????????? | | ?# !== # ???????????????? | | ?# ##+####????????????? | | #????????????? | | ######## """ < #????????????? | | ???????# """ #????????????? | | ???????# """ ###### #######?????????? | | ???????# """ #????# ug @=u#?????????? | | ?????? #????# g !%##?????????? | | ????? #????# |#??????????? | | ????? """ #????########??????????? | | ?????# = """ #??????????????????????? | | ?????# """ #??????????????????????? | | ?????# """ ??????????????????????? | | ?????# ?? ??????????????????????? | | ????? ???? ??????????????????????? | | ???????????### ??????????????????????? | | ?????????????? ??????????????????????? | | ?????????????? ??????????????????????? | | ?????????????? ??????????????????????? | | ?????????????? ??????????????????????? | | ??????????????##??????????????????????? | | ??????????????????????????????????????? | | ??????????????????????????????????????? | | ??????????????????????????????????????? | | ??????????????????????????????????????? | | ??????????????????????????????????????? | | ??????????????????????????????????????? | | ??????????????????????????????????????? | | ??????????????????????????????????????? | | ??????????????????????????????????????? | | ??????????????????????????????????????? | +----------------------------------------------------+ Best States ------------- Heat Dissipation 25 Energy Generation 5 Energy Capacity 100 Matter Stores 216 Matter Capacity 300 Sight Range 16 Terrain Scan Density 10 Evasion (%) 50 Item Schematics ----------------- None Robot Schematics ------------------ None Fabricated ------------ Nothing Repaired ---------- Nothing Studied --------- None Alien Tech Used ----------------- None Achievements -------------- None Challenges ------------ None Game ------ Seed ChromionProtonDoomcannon Manual? 0 Play Time 00:00:54 Cumulative 389.1 hours Start 2025.11.09 @ 02:54:15 End 2025.11.09 @ 02:54:47 Sessions 1 Manual Loads 0 Difficulty Rogue Special Mode None Game No. 357 Rogue 357 Adventurer 0 Explorer 0 Win Type - Total 3 Types 2/1/0/0/0/0/0/0/0/0 Lore% 84 Gallery% 83 Achievement% 62 Wizard Run 0 Options --------- Layout 1 ASCII 0 Keyboard 0 Movement Numpad Keybinds 0 Fullscreen 1 Font 24/Smallcaps Map View 50x35 Zoom Use 0% Tactical HUD 1 Map Filters NONE Filters NONE Steam 1 RUN: dc0203ac-9687-44e3-9efd-30e0bb923cbc